Department Family,Entity,Date Paid,Expense Type,Expense Area,Supplier Name,Transaction Reference,Analysed Gross
Department of Health,Chelsea & Westminster NHS Foundation Trust,01/03/2019,Telephones - Private Circuits,Trust Wide,Imperial College Healthcare Nhs Trust,1302420,"53,164.43"
Department of Health,Chelsea & Westminster NHS Foundation Trust,01/03/2019,Rent Rates & Service Charge,Trust Wide,Dalness Estates Ltd,1303459,"48,000.00"
Department of Health,Chelsea & Westminster NHS Foundation Trust,01/03/2019,Rent Rates & Service Charge,Trust Wide,Dalness Estates Ltd,1303460,"48,000.00"
Department of Health,Chelsea & Westminster NHS Foundation Trust,01/03/2019,Rent Rates & Service Charge,Trust Wide,Dalness Estates Ltd,1303461,"48,000.00"
Department of Health,Chelsea & Westminster NHS Foundation Trust,01/03/2019,Pathology Services February 2018,Sexual Health - Sutton,Doctors Laboratory Ltd (The),1303715,"63,012.00"
Department of Health,Chelsea & Westminster NHS Foundation Trust,01/03/2019,Pathology Services February 2018,Sexual Health - Sutton,Doctors Laboratory Ltd (The),1303877,"122,355.50"
Department of Health,Chelsea & Westminster NHS Foundation Trust,01/03/2019,Dayhawk Consultation & Dawhawk CT Exam,Radiology,Medtronic Limited,1306363,"127,539.60"
Department of Health,Chelsea & Westminster NHS Foundation Trust,01/03/2019,Clinical Supplies,Divisional Areas,Nhs Supply Chain,1306691,"75,835.17"
Department of Health,Chelsea & Westminster NHS Foundation Trust,01/03/2019,Clinical Supplies,Divisional Areas,Nhs Supply Chain,1306692,"148,759.84"
Department of Health,Chelsea & Westminster NHS Foundation Trust,01/03/2019,Drug Purchases,Pharmacy  (Chelsea site),Csl Behring Uk Ltd,1310561,"42,250.00"
Department of Health,Chelsea & Westminster NHS Foundation Trust,04/03/2019,Surgical Appliances - General,Surgical Appliances Department,Trulife Limited,1306414,"51,703.22"
Department of Health,Chelsea & Westminster NHS Foundation Trust,05/03/2019,It Shared Service,I.C.T,Ebberod Capital Ltd (T/A Sectra),1308190,"115,110.00"
Department of Health,Chelsea & Westminster NHS Foundation Trust,05/03/2019,Service Charge - Core Pfi,Pfi Unitary Payment,Iss Mediclean Limited,1309085,"32,150.57"
Department of Health,Chelsea & Westminster NHS Foundation Trust,05/03/2019,Drug Purchases,Pharmacy  (Chelsea site),Gilead Sciences Ltd,1309396,"25,211.22"
Department of Health,Chelsea & Westminster NHS Foundation Trust,05/03/2019,Drug Purchases,Pharmacy  (Chelsea site),Gilead Sciences Ltd,1309744,"63,486.00"
Department of Health,Chelsea & Westminster NHS Foundation Trust,05/03/2019,Agency Nurse - Band 5,Central Nursing Agency,Care Providers Ltd,1311372,"229,602.56"
Department of Health,Chelsea & Westminster NHS Foundation Trust,07/03/2019,Typing & Transcription Services,Paediatric Secretaries,Dscribe Ltd,1295159,"37,807.29"
Department of Health,Chelsea & Westminster NHS Foundation Trust,07/03/2019,Typing & Transcription Services,Paediatric Secretaries,Dscribe Ltd,1306674,"47,020.63"
Department of Health,Chelsea & Westminster NHS Foundation Trust,08/03/2019,JAC Pharmacy App Software Maintenance,Main Pharmacy,Simple Solutions Wfm Ltd,1302878,"25,925.00"
Department of Health,Chelsea & Westminster NHS Foundation Trust,12/03/2019,Drugs - H.I.V.,Hiv - Herts,West Hertfordshire Hospitals Nhs Trust,1251140,"104,703.76"
Department of Health,Chelsea & Westminster NHS Foundation Trust,12/03/2019,M.R.I. Scans,Radiology,Alliance Medical Limited,1294197,"112,300.40"
Department of Health,Chelsea & Westminster NHS Foundation Trust,12/03/2019,M.R.I. Scans,Radiology,Alliance Medical Limited,1302616,"134,760.48"
Department of Health,Chelsea & Westminster NHS Foundation Trust,12/03/2019,Service Charge - Core Pfi,Pfi Unitary Payment,Bywest Ltd,1302958,"346,348.80"
Department of Health,Chelsea & Westminster NHS Foundation Trust,12/03/2019,M.R.I. Scans,Radiology,Alliance Medical Limited,1305330,"254,390.05"
Department of Health,Chelsea & Westminster NHS Foundation Trust,12/03/2019,Maternity System Support,Maternity Ward & Teams,Hd Clinical Limited,1306097,"65,400.00"
Department of Health,Chelsea & Westminster NHS Foundation Trust,12/03/2019,P.T.S. - Main Contract,Trust Wide,Hats Group Ltd,1306434,"83,521.39"
Department of Health,Chelsea & Westminster NHS Foundation Trust,12/03/2019,Dayhawk Consultation & Dawhawk CT Exam,Radiology,Medica Reporting Ltd (Medica Group),1308000,"59,020.95"
Department of Health,Chelsea & Westminster NHS Foundation Trust,12/03/2019,Dayhawk Consultation & Dawhawk CT Exam,Radiology,Medica Reporting Ltd (Medica Group),1308011,"38,797.15"
Department of Health,Chelsea & Westminster NHS Foundation Trust,12/03/2019,Clinical Supplies,Divisional Areas,Nhs Supply Chain,1310525,"97,108.04"
Department of Health,Chelsea & Westminster NHS Foundation Trust,12/03/2019,Drug Purchases,Pharmacy  (Chelsea site),St George'S University Hospitals Nhs Ft,1310591,"29,626.56"
Department of Health,Chelsea & Westminster NHS Foundation Trust,12/03/2019,Clinical Supplies,Divisional Areas,Nhs Supply Chain,1310601,"146,868.57"
Department of Health,Chelsea & Westminster NHS Foundation Trust,12/03/2019,Postage,Trust Wide,Neopost Ltd,1311361,"43,000.00"
Department of Health,Chelsea & Westminster NHS Foundation Trust,12/03/2019,Nw London Pathology Contract,Pathology And Blood,North West London Pathology,1312504,"1,778,134.11"
Department of Health,Chelsea & Westminster NHS Foundation Trust,12/03/2019,ITU Equipment,Chelsea Site,Cantel (Uk) Limited,1314886,"214,935.34"
Department of Health,Chelsea & Westminster NHS Foundation Trust,14/03/2019,Consultancy Services,EPR Cross Site Project,Brook Street Bureau Plc,1251938,"28,855.36"
Department of Health,Chelsea & Westminster NHS Foundation Trust,14/03/2019,Consultancy Services,EPR Cross Site Project,Brook Street Bureau Plc,1251941,"28,299.78"
Department of Health,Chelsea & Westminster NHS Foundation Trust,14/03/2019,Drugs - H.I.V.,Hiv - Herts,Epsom And St Helier University Hosp Nhs Trust,1276402,"36,463.76"
Department of Health,Chelsea & Westminster NHS Foundation Trust,14/03/2019,Agency Nurse - Band 5,Central Nursing Agency,Care Providers Ltd,1312649,"241,823.38"
Department of Health,Chelsea & Westminster NHS Foundation Trust,14/03/2019,Pathology Test,Sexual Health - Sutton,Epsom And St Helier University Hosp Nhs Trust,1315116,"36,735.62"
Department of Health,Chelsea & Westminster NHS Foundation Trust,19/03/2019,Recharges � Pay and non-pay costs,Pain,Imperial College London,1232977,"214,740.58"
Department of Health,Chelsea & Westminster NHS Foundation Trust,19/03/2019,Recharges � Pay and non-pay costs,Pain,Imperial College London,1251460,"32,181.82"
Department of Health,Chelsea & Westminster NHS Foundation Trust,19/03/2019,It Shared Service,I.C.T,Sphere Systems Powering Healthcare Ltd,1314379,"501,354.10"
Department of Health,Chelsea & Westminster NHS Foundation Trust,19/03/2019,It Shared Service,I.C.T,Sphere Systems Powering Healthcare Ltd,1314380,"501,354.10"
Department of Health,Chelsea & Westminster NHS Foundation Trust,19/03/2019,Wandwaver Business Support to E-Pay Projects,Finance,Lifecycle Managment Group Limited,1315068,"40,351.84"
Department of Health,Chelsea & Westminster NHS Foundation Trust,19/03/2019,Typing & Transcription Services,Paediatric Secretaries,Scribetech Uk Ltd,1315248,"31,625.77"
Department of Health,Chelsea & Westminster NHS Foundation Trust,19/03/2019,Telephones: Rental & Calls,Bt Payment Services Ltd,Bt Payment Services Ltd,1315308,"30,807.49"
Department of Health,Chelsea & Westminster NHS Foundation Trust,19/03/2019,Fire Alarm Replacement,Chelsea Site,Phoenix Construction Services Ltd,1318155,"98,040.00"
Department of Health,Chelsea & Westminster NHS Foundation Trust,21/03/2019,Gas,Trust General Services,Corona Energy Retail 4 Ltd,1301932,"49,902.40"
Department of Health,Chelsea & Westminster NHS Foundation Trust,21/03/2019,Joint Therapies Consortium,Therapies Sla Contract,Hounslow & Richmond Community Healthcare,1301946,"40,415.77"
Department of Health,Chelsea & Westminster NHS Foundation Trust,21/03/2019,Gas,Trust General Services,Corona Energy Retail 4 Ltd,1307336,"38,704.44"
Department of Health,Chelsea & Westminster NHS Foundation Trust,21/03/2019,Fire Alarm Replacement,Chelsea Site,Mclaughlin & Harvey Ltd,1309147,"1,190,772.00"
Department of Health,Chelsea & Westminster NHS Foundation Trust,21/03/2019,Fire Alarm Replacement,Chelsea Site,Bywest Ltd,1309612,"89,100.00"
Department of Health,Chelsea & Westminster NHS Foundation Trust,21/03/2019,Drugs - H.I.V.,Hiv - Herts,West Hertfordshire Hospitals Nhs Trust,1310512,"291,183.00"
Department of Health,Chelsea & Westminster NHS Foundation Trust,21/03/2019,Drug Purchases,Pharmacy  (Chelsea site),Bayer Plc,1311085,"31,464.00"
Department of Health,Chelsea & Westminster NHS Foundation Trust,21/03/2019,Drug Purchases,Pharmacy  (Westmid site),Celgene Ltd,1311479,"26,208.00"
Department of Health,Chelsea & Westminster NHS Foundation Trust,21/03/2019,Leases - Buildings,Queen Mary Maternity Unit,Healthcare Hire Msa Limited,1312098,"222,042.65"
Department of Health,Chelsea & Westminster NHS Foundation Trust,21/03/2019,M.S.S.E. - Routine Purchases,Radiology,Hats Group Ltd,1312595,"165,664.80"
Department of Health,Chelsea & Westminster NHS Foundation Trust,21/03/2019,M.S.S.E. - Maintenance,Ultrasound Department,Nhs Logistics Authority Maintenance,1313313,"30,302.88"
Department of Health,Chelsea & Westminster NHS Foundation Trust,21/03/2019,Agency Nurse - Band 5,Central Nursing Agency,Care Providers Ltd,1314077,"245,449.58"
Department of Health,Chelsea & Westminster NHS Foundation Trust,21/03/2019,Computer Maintenance Contracts,Radiology Department,Becton Dickinson Dispensing Uk Ltd,1315172,"26,335.13"
Department of Health,Chelsea & Westminster NHS Foundation Trust,21/03/2019,M.S.S.E. - Maintenance,Ultrasound Department,Nhs Logistics Authority Maintenance,1316470,"147,761.31"
Department of Health,Chelsea & Westminster NHS Foundation Trust,21/03/2019,M.S.S.E. - Maintenance,Ultrasound Department,Nhs Logistics Authority Maintenance,1316479,"159,737.27"
Department of Health,Chelsea & Westminster NHS Foundation Trust,21/03/2019,Leases - Buildings,Queen Mary Maternity Unit,Healthcare Hire Msa Limited,1317063,"107,439.91"
Department of Health,Chelsea & Westminster NHS Foundation Trust,26/03/2019,Recruitment Expenses,EPR Cross Site Project,Hunter Healthcare Resourcing Ltd,1305946,"33,696.00"
Department of Health,Chelsea & Westminster NHS Foundation Trust,26/03/2019,Leases - Buildings,Queen Mary Maternity Unit,Amas Ltd,1309112,"174,189.90"
Department of Health,Chelsea & Westminster NHS Foundation Trust,26/03/2019,Wandwaver Business Support to E-Pay Projects,Finance,Healthcare Clinical Informatics Ltd,1311504,"36,180.00"
Department of Health,Chelsea & Westminster NHS Foundation Trust,26/03/2019,Wandwaver Business Support to E-Pay Projects,Finance,Healthcare Clinical Informatics Ltd,1311505,"25,200.00"
Department of Health,Chelsea & Westminster NHS Foundation Trust,26/03/2019,Wandwaver Business Support to E-Pay Projects,Finance,Healthcare Clinical Informatics Ltd,1311506,"25,920.00"
Department of Health,Chelsea & Westminster NHS Foundation Trust,26/03/2019,Wandwaver Business Support to E-Pay Projects,Finance,Healthcare Clinical Informatics Ltd,1312357,"25,200.00"
Department of Health,Chelsea & Westminster NHS Foundation Trust,26/03/2019,ITU Equipment,Chelsea Site,Verathon  Medical ( Uk) Ltd,1312391,"103,877.42"
Department of Health,Chelsea & Westminster NHS Foundation Trust,26/03/2019,Rent Rates & Service Charge,Trust Wide,Chelsea Harbour Ltd,1312839,"46,410.90"
Department of Health,Chelsea & Westminster NHS Foundation Trust,26/03/2019,Rent Rates & Service Charge,Trust Wide,Chelsea Harbour Ltd,1312840,"31,226.40"
Department of Health,Chelsea & Westminster NHS Foundation Trust,26/03/2019,Rent Rates & Service Charge,Trust Wide,Chelsea Harbour Ltd,1312842,"31,074.30"
Department of Health,Chelsea & Westminster NHS Foundation Trust,26/03/2019,Resourcing,Specialist Computer Centres Plc,Specialist Computer Centres Plc,1313869,"70,947.60"
Department of Health,Chelsea & Westminster NHS Foundation Trust,26/03/2019,Dayhawk Consultation & Dawhawk CT Exam,Radiology,Cloud 21 Limited,1314773,"29,002.80"
Department of Health,Chelsea & Westminster NHS Foundation Trust,26/03/2019,190Additional Bed Days & Service Fees Recovery at Home Contract December 17,Medical Outliers,Boots Uk Ltd,1315338,"42,207.08"
Department of Health,Chelsea & Westminster NHS Foundation Trust,26/03/2019,Typing & Transcription Services,Paediatric Secretaries,Dscribe Ltd,1316892,"42,603.98"
Department of Health,Chelsea & Westminster NHS Foundation Trust,26/03/2019,Clinical Supplies,Divisional Areas,Nhs Supply Chain,1317060,"117,120.32"
Department of Health,Chelsea & Westminster NHS Foundation Trust,26/03/2019,M.S.S.E. - Routine Purchases,Radiology,Bioventus Cooperatief Ua,1318118,"76,874.85"
Department of Health,Chelsea & Westminster NHS Foundation Trust,26/03/2019,Clinical Supplies,Divisional Areas,Nhs Supply Chain,1319085,"146,027.07"
Department of Health,Chelsea & Westminster NHS Foundation Trust,26/03/2019,Wandwaver Business Support to E-Pay Projects,Finance,Akeso & Company Limited,1319180,"27,000.00"
Department of Health,Chelsea & Westminster NHS Foundation Trust,26/03/2019,Fire Alarm Replacement,Chelsea Site,Healthcare Hire Msa Limited,1321940,"10,884,000.00"
Department of Health,Chelsea & Westminster NHS Foundation Trust,26/03/2019,Drug Purchases,Pharmacy  (Chelsea site),Gilead Sciences Ltd,1322049,"40,140.00"
Department of Health,Chelsea & Westminster NHS Foundation Trust,26/03/2019,ITU Equipment,Chelsea Site,Cantel (Uk) Limited,1322486,"25,899.82"
Department of Health,Chelsea & Westminster NHS Foundation Trust,27/03/2019,Fire Alarm Replacement,Chelsea Site,Cbre Managed Services Limited,1214742,"162,711.00"
Department of Health,Chelsea & Westminster NHS Foundation Trust,27/03/2019,Gas,Trust General Services,Corona Energy Retail 4 Ltd,1301936,"77,978.09"
Department of Health,Chelsea & Westminster NHS Foundation Trust,27/03/2019,Dayhawk Consultation & Dawhawk CT Exam,Radiology,Cloud 21 Limited,1304346,"58,005.60"
Department of Health,Chelsea & Westminster NHS Foundation Trust,27/03/2019,Fire Alarm Replacement,Chelsea Site,Ensigna Construction Ltd,1306668,"230,794.80"
Department of Health,Chelsea & Westminster NHS Foundation Trust,27/03/2019,Electricty,Trust Wide,Corona Energy Retail 4 Ltd,1308043,"129,087.88"
Department of Health,Chelsea & Westminster NHS Foundation Trust,27/03/2019,Recharges � Pay and non-pay costs,Clarhc Office Admin,Integris Solutions Limited,1312160,"41,400.00"
Department of Health,Chelsea & Westminster NHS Foundation Trust,27/03/2019,Rent Rates & Service Charge,Trust Wide,Chelsea Harbour Ltd,1312841,"72,416.70"
Department of Health,Chelsea & Westminster NHS Foundation Trust,27/03/2019,Rent Rates & Service Charge,Trust Wide,Chelsea Harbour Ltd,1312843,"60,465.30"
Department of Health,Chelsea & Westminster NHS Foundation Trust,27/03/2019,Recharges � Pay and non-pay costs,Clarhc Office Admin,Nuclear Liablities Fund Ltd,1315054,"114,769.20"
Department of Health,Chelsea & Westminster NHS Foundation Trust,27/03/2019,P.T.S. - Main Contract,Trust Wide,Hats Group Ltd,1316430,"82,578.34"
Department of Health,Chelsea & Westminster NHS Foundation Trust,27/03/2019,Dayhawk Consultation & Dawhawk CT Exam,Radiology,Medica Reporting Ltd (Medica Group),1317108,"32,527.41"
Department of Health,Chelsea & Westminster NHS Foundation Trust,27/03/2019,ITU Equipment,Chelsea Site,Nhs Supply Chain,1317392,"449,703.83"
Department of Health,Chelsea & Westminster NHS Foundation Trust,27/03/2019,ITU Equipment,Chelsea Site,Philips Healthcare,1318116,"306,574.75"
Department of Health,Chelsea & Westminster NHS Foundation Trust,27/03/2019,Fire Alarm Replacement,Chelsea Site,Phoenix Construction Services Ltd,1319359,"126,423.36"
Department of Health,Chelsea & Westminster NHS Foundation Trust,27/03/2019,ITU Equipment,Chelsea Site,Philips Healthcare,1320525,"58,663.58"
Department of Health,Chelsea & Westminster NHS Foundation Trust,27/03/2019,ITU Equipment,Chelsea Site,Optima Medical Ltd,1322564,"72,063.90"
Department of Health,Chelsea & Westminster NHS Foundation Trust,27/03/2019,ITU Equipment,Chelsea Site,Sisk Healthcare (Uk) Ltd  T/A,1322606,"331,144.92"
Department of Health,Chelsea & Westminster NHS Foundation Trust,27/03/2019,ITU Equipment,Chelsea Site,Philips Healthcare,1323158,"421,380.82"
Department of Health,Chelsea & Westminster NHS Foundation Trust,27/03/2019,ITU Equipment,Chelsea Site,Philips Healthcare,1323160,"374,498.18"
Department of Health,Chelsea & Westminster NHS Foundation Trust,27/03/2019,Fire Alarm Replacement,Chelsea Site,Ensigna Construction Ltd,1323219,"773,993.35"
Department of Health,Chelsea & Westminster NHS Foundation Trust,27/03/2019,ITU Equipment,Chelsea Site,Philips Healthcare,1323252,"45,873.59"
Department of Health,Chelsea & Westminster NHS Foundation Trust,27/03/2019,ITU Equipment,Chelsea Site,Love Medical Ltd,1323377,"29,648.27"
Department of Health,Chelsea & Westminster NHS Foundation Trust,27/03/2019,ITU Equipment,Chelsea Site,Love Medical Ltd,1323378,"28,448.27"
Department of Health,Chelsea & Westminster NHS Foundation Trust,27/03/2019,ITU Equipment,Chelsea Site,Wright Health Group Ltd,1323457,"53,268.30"
Department of Health,Chelsea & Westminster NHS Foundation Trust,27/03/2019,ITU Equipment,Chelsea Site,Wright Health Group Ltd,1323458,"53,268.30"
Department of Health,Chelsea & Westminster NHS Foundation Trust,27/03/2019,Gas,Trust General Services,Corona Energy Retail 4 Ltd,1323486,"30,927.52"
Department of Health,Chelsea & Westminster NHS Foundation Trust,27/03/2019,Gas,Trust General Services,Corona Energy Retail 4 Ltd,1323487,"27,407.44"
Department of Health,Chelsea & Westminster NHS Foundation Trust,27/03/2019,Gas,Trust General Services,Corona Energy Retail 4 Ltd,1323488,"26,594.92"
Department of Health,Chelsea & Westminster NHS Foundation Trust,27/03/2019,Gas,Trust General Services,Corona Energy Retail 4 Ltd,1323503,"33,824.35"
Department of Health,Chelsea & Westminster NHS Foundation Trust,27/03/2019,Gas,Trust General Services,Corona Energy Retail 4 Ltd,1323519,"53,028.48"
Department of Health,Chelsea & Westminster NHS Foundation Trust,28/03/2019,General Computer Software,Urgent Care Centre,"Automation Anywhere, Inc.",1305598,"35,000.00"
Department of Health,Chelsea & Westminster NHS Foundation Trust,28/03/2019,M.S.S.E. - Routine Purchases,Radiology,Nhs Blood Transplant,1323749,"76,319.52"
Department of Health,Chelsea & Westminster NHS Foundation Trust,28/03/2019,M.S.S.E. - Routine Purchases,Radiology,Nhs Blood Transplant,1323751,"57,606.79"
Department of Health,Chelsea & Westminster NHS Foundation Trust,28/03/2019,VAT Consultation,Finance,Liaison Financial Services Ltd,1323758,"57,525.41"
Department of Health,Chelsea & Westminster NHS Foundation Trust,28/03/2019,VAT Consultation,Finance,Liaison Financial Services Ltd,1323760,"49,415.05"
Department of Health,Chelsea & Westminster NHS Foundation Trust,28/03/2019,VAT Consultation,Finance,Liaison Financial Services Ltd,1323762,"51,399.34"
Department of Health,Chelsea & Westminster NHS Foundation Trust,28/03/2019,VAT Consultation,Finance,Liaison Financial Services Ltd,1323765,"50,798.53"
